fUSD/lending_fUSD_20250205
["ID","MTS","AMOUNT","RATE_DAILY","PERIOD"]
[351697863,1738753833712,-430.49,9.989e-05,2]
[351697865,1738753833722,-520.35,9.989e-05,2]
[351697867,1738753833731,-207.26,9.989e-05,2]
[351697869,1738753833740,-574.3,9.989e-05,2]
[351697871,1738753833750,-500.0,9.989e-05,2]
[351697873,1738753833760,-500.0,9.989e-05,2]
[351697875,1738753833770,-500.0,9.989e-05,2]
[351697877,1738753833780,-500.0,9.989e-05,2]
[351697880,1738753833790,-503.83015779,9.989e-05,2]
[351697882,1738753833800,-500.0,9.989e-05,2]
[351697883,1738753833810,-500.0,9.989e-05,2]
[351697886,1738753833820,-589.4,9.989e-05,2]
[351697888,1738753833830,-500.0,9.989e-05,2]
[351697890,1738753833839,-500.0,9.989e-05,2]
[351697891,1738753833848,-500.0,9.989e-05,2]
[351697893,1738753833860,-575.38,9.989e-05,2]
[351697895,1738753833869,-500.0,9.989e-05,2]
[351697897,1738753833878,-500.0,9.989e-05,2]
[351697899,1738753833887,-466.46,9.989e-05,2]
[351697901,1738753833898,-500.0,9.989e-05,2]
[351697903,1738753833907,-500.0,9.989e-05,2]
[351697905,1738753833917,-427.01,9.989e-05,2]
[351697907,1738753833927,-500.0,9.989e-05,2]
[351697909,1738753833939,-500.0,9.989e-05,2]
[351697911,1738753833949,-500.0,9.989e-05,2]
[351697914,1738753833961,-566.07,9.989e-05,2]
[351697915,1738753833971,-608.76,9.989e-05,2]
[351697917,1738753833981,-500.0,9.989e-05,2]
[351697919,1738753833992,-500.0,9.989e-05,2]
[351697921,1738753834002,-265.32,9.989e-05,2]
[351697924,1738753834012,-500.0,9.989e-05,2]
[351697926,1738753834023,-500.0,9.989e-05,2]
[351697927,1738753834033,-230.13485,9.989e-05,2]
[351697930,1738753834043,-500.0,9.989e-05,2]
[351697932,1738753834053,-500.0,9.989e-05,2]
[351697934,1738753834062,-532.31785956,9.989e-05,2]
[351697936,1738753834071,-585.06,9.989e-05,2]
[351697938,1738753834080,-235.1,9.989e-05,2]
[351697940,1738753834089,-500.0,9.989e-05,2]
[351697942,1738753834098,-500.0,9.989e-05,2]
[351697944,1738753834108,-500.0,9.989e-05,2]
[351697945,1738753834117,-500.0,9.998e-05,2]
[351697947,1738753834126,-500.0,9.998e-05,2]
[351697949,1738753834136,-500.0,9.998e-05,2]
[351697951,1738753834145,-500.0,9.998e-05,2]
[351697953,1738753834155,-500.0,9.998e-05,2]
[351697955,1738753834165,-500.0,9.998e-05,2]
[351697957,1738753834175,-500.0,9.998e-05,2]
[351697959,1738753834185,-500.0,9.998e-05,2]
[351697962,1738753834195,-500.0,9.998e-05,2]
[351697964,1738753834206,-500.0,9.998e-05,2]
[351697966,1738753834217,-500.0,9.998e-05,2]
[351697968,1738753834227,-500.0,9.998e-05,2]
[351697970,1738753834237,-500.0,9.998e-05,2]
[351697972,1738753834246,-306.574255,9.998e-05,2]
[351697973,1738753834256,-500.0,9.998e-05,2]
[351697975,1738753834266,-500.0,9.998e-05,2]
[351697977,1738753834276,-1927.90058555,9.999e-05,3]
[351697980,1738753834286,-262.59,9.999e-05,2]
[351697981,1738753834297,-451.70858424,9.999e-05,2]
[351697983,1738753834307,-396.67,9.999e-05,2]
[351697986,1738753834319,-339.39,9.999e-05,2]
[351697987,1738753834329,-159.08,9.999e-05,2]
[351697989,1738753834338,-298.01,9.999e-05,2]
[351697991,1738753834348,-561.77,9.999e-05,2]
[351697993,1738753834358,-500.0,9.999e-05,2]
[351697995,1738753834369,-500.0,9.999e-05,2]
[351697997,1738753834379,-500.0,9.999e-05,2]
[351697999,1738753834389,-183.76048827,9.999e-05,2]
[351698001,1738753834399,-569.13309893,9.999e-05,2]
[351698003,1738753834409,-555.04,9.999e-05,2]
[351698005,1738753834420,-500.0,9.999e-05,2]
[351698007,1738753834441,-113.06827844,9.999e-05,2]
[351698011,1738753834464,-386.93172156,9.999e-05,2]
[351698013,1738753834474,-471.36,9.999e-05,2]
[351698015,1738753834483,-208.18,9.999e-05,2]
[351698016,1738753834493,-237.41,9.999e-05,2]
[351698019,1738753834503,-339.57,9.999e-05,2]
[351698021,1738753834513,-181.43407962,9.999e-05,2]
[351698023,1738753834531,-411.37592038,9.999e-05,2]
[351698026,1738753834541,-500.0,9.999e-05,2]
[351698028,1738753834551,-292.82,9.999e-05,2]
[351698030,1738753834561,-537.54,9.999e-05,2]
[351698032,1738753834571,-1212.7,9.999e-05,2]
[351698033,1738753834580,-626.53,9.999e-05,2]
[351698035,1738753834590,-500.0,9.999e-05,2]
[351698037,1738753834599,-500.0,9.999e-05,2]
[351698039,1738753834609,-618.01,9.999e-05,2]
[351698041,1738753834618,-500.0,9.999e-05,2]
[351698043,1738753834628,-507.0,9.999e-05,2]
[351698045,1738753834638,-452.76,9.999e-05,2]
[351698047,1738753834648,-500.0,9.999e-05,2]
[351698049,1738753834657,-635.33,9.999e-05,2]
[351698051,1738753834668,-500.0,9.999e-05,2]
[351698053,1738753834678,-264.98270492,9.999e-05,2]
[351698565,1738753840331,-766.37,9.493e-05,2]
[351698567,1738753840342,-1108.0,9.843e-05,2]
[351698569,1738753840351,-235.01729508,9.999e-05,2]
[351698571,1738753840361,-500.0,9.999e-05,2]
[351698574,1738753840371,-500.0,9.999e-05,2]
[351698576,1738753840380,-500.0,9.999e-05,2]
[351698579,1738753840389,-500.0,9.999e-05,2]
[351698582,1738753840399,-283.53,9.999e-05,2]
[351698585,1738753840409,-549.88,9.999e-05,2]
[351698587,1738753840419,-500.0,9.999e-05,2]
[351698589,1738753840430,-500.0,9.999e-05,2]
[351698591,1738753840440,-500.0,9.999e-05,2]
[351698593,1738753840450,-500.0,9.999e-05,2]
[351698595,1738753840460,-500.0,9.999e-05,2]
[351698597,1738753840469,-500.0,9.999e-05,2]
[351698599,1738753840479,-500.0,9.999e-05,2]
[351698600,1738753840489,-261.84,9.999e-05,2]
[351698601,1738753840499,-500.0,9.999e-05,2]
[351698602,1738753840508,-331.82,9.999e-05,2]
[351698603,1738753840518,-557.64889519,9.999e-05,2]
[351698604,1738753840527,-437.89380973,9.999e-05,2]
[351698606,1738753840547,-62.10619027,9.999e-05,2]
[351698608,1738753840557,-540.04145609,9.999e-05,2]
[351698610,1738753840569,-105.57854391,9.999e-05,2]
[351698612,1738753840579,-500.0,9.999e-05,2]
[351698614,1738753840589,-426.75174531,9.999e-05,2]
[351698616,1738753840601,-23.25825469,9.999e-05,2]
[351698618,1738753840611,-500.0,9.999e-05,2]
[351698620,1738753840620,-500.0,9.999e-05,2]
[351698622,1738753840631,-264.04,9.999e-05,2]
[351698624,1738753840640,-443.24376315,9.999e-05,2]
[351698626,1738753840650,-320.95728467,9.999e-05,2]
[351698627,1738753840660,-44.6814971,9.999e-05,2]
[351698628,1738753840673,-328.3585029,9.999e-05,2]
[351698629,1738753840683,-54.9115346,9.999e-05,2]
[351698657,1738753843381,-445.0884654,9.999e-05,2]
[351698658,1738753843391,-500.0,9.999e-05,2]
[351698659,1738753843401,-500.0,9.999e-05,2]
[351698660,1738753843410,-500.0,9.999e-05,2]
[351698661,1738753843419,-500.0,9.999e-05,2]
[351698662,1738753843429,-500.0,9.999e-05,2]
[351698663,1738753843439,-413.27081491,9.999e-05,2]
[351698664,1738753843448,-280.38808493,9.999e-05,2]
[351698665,1738753843457,-501.05505135,9.999e-05,2]
[351698666,1738753843467,-500.0,9.999e-05,2]
[351698667,1738753843476,-500.0,9.999e-05,2]
[351698668,1738753843487,-500.0,9.999e-05,2]
[351698669,1738753843497,-500.0,9.999e-05,2]
[351698670,1738753843507,-500.0,9.999e-05,2]
[351698671,1738753843516,-500.0,9.999e-05,2]
[351698672,1738753843526,-500.0,9.999e-05,2]
[351698673,1738753843536,-500.0,9.999e-05,2]
[351698674,1738753843545,-500.0,9.999e-05,2]
[351698675,1738753843555,-599.05144014,9.999e-05,2]
[351698676,1738753843564,-500.0,9.999e-05,2]
[351698677,1738753843574,-204.81111763,9.999e-05,2]
[351698678,1738753843583,-500.0,9.999e-05,2]
[351698679,1738753843592,-500.0,9.999e-05,2]
[351698680,1738753843601,-500.0,9.999e-05,2]
[351698681,1738753843611,-500.0,9.999e-05,2]
[351698682,1738753843621,-500.0,9.999e-05,2]
[351698683,1738753843630,-500.0,9.999e-05,2]
[351698684,1738753843639,-500.0,9.999e-05,2]
[351698685,1738753843648,-650.0,9.999e-05,2]
[351698686,1738753843657,-500.0,9.999e-05,2]
[351698687,1738753843666,-500.0,9.999e-05,2]
[351698688,1738753843677,-500.0,9.999e-05,2]
[351698689,1738753843686,-500.0,9.999e-05,2]
[351698690,1738753843696,-886.33506551,0.0001,2]
[351698691,1738753843707,-450.66493449,0.0001,2]
[351698692,1738753843717,-14595.01920303,0.0001,2]
[351698693,1738753843728,-32830.03617611,0.0001,2]
[351698694,1738753843738,-152684.17779396,0.0001,2]
[351698695,1738753843750,-321.00757114,0.0001,2]
[351698698,1738753843764,-927.65944,0.0001,2]
[351698700,1738753846462,-5094.17189714,0.0001,2]
[351698701,1738753846473,-559438.944885,0.0001,2]
[351698702,1738753846568,-160589.17458002,0.0001,2]
[351698703,1738753846622,-19649.96368,0.0001,2]
[351698704,1738753846677,-21006.06946332,0.0001,2]
[351698705,1738753846715,-17577.15218049,0.0001,2]
[351698709,1738753960207,11774.85178,0.000189,120]
[351698710,1738754262840,-200.0,0.0001,7]
[351698711,1738754325072,-152.0,0.00011242,10]
[351698712,1738754325095,-152.0,0.0001142,11]
[351698713,1738754325120,-152.0,0.00011599,12]
[351698714,1738754325144,-152.0,0.00011778,13]
[351698715,1738754325169,-152.0,0.00011956,14]
[351698716,1738754325192,-3571.06268577,0.00012,10]
[351698717,1738754469859,500.0,8.22e-05,2]
[351698718,1738754571328,1279.07,8.219e-05,2]
[351698724,1738754782962,926.40333286,8.108e-05,2]
[351698725,1738754782991,573.59666714,8.108e-05,2]
[351698727,1738754809412,250.0,8.219e-05,2]
[351698734,1738754856635,1000.0,8.219e-05,2]
[351698737,1738754887703,6271.52333286,8.155e-05,2]
[351698745,1738754926667,200.0,7.886e-05,2]
[351698772,1738755031705,-280.5,8.115e-05,2]
[351698773,1738755031753,-2098.16,8.115e-05,2]
[351698774,1738755031763,-300.0,8.154e-05,2]
[351698775,1738755031772,-3719.34466857,8.154e-05,2]
[351698776,1738755031783,-17628.47666714,8.155e-05,2]
[351698777,1738755031792,-264.857,8.256e-05,2]
[351698778,1738755031802,-438.17,8.356e-05,2]
[351698779,1738755031811,-18514.06,8.443e-05,2]
[351698780,1738755031821,-168.37,8.506e-05,2]
[351698781,1738755031830,-198.08751815,8.506e-05,2]
[351698782,1738755031839,-505.84685623,8.506e-05,2]
[351698783,1738755031848,-1005.15,8.557e-05,2]
[351698784,1738755031857,-6915.54,8.577e-05,2]
[351698785,1738755031866,-268.67,8.578e-05,2]
[351698786,1738755031875,-150.0,8.675e-05,2]
[351698787,1738755031884,-2000.0,8.676e-05,2]
[351698788,1738755031893,-438.52,8.68e-05,2]
[351698789,1738755031903,-1000.0,8.698e-05,2]
[351698790,1738755031912,-1502.8333,8.699e-05,2]
[351698791,1738755031922,-8265.9771,8.699e-05,2]
[351698792,1738755031931,-435.98,8.714e-05,2]
[351698793,1738755031941,-2530.45,8.767e-05,2]
[351698794,1738755031952,-500.0,8.799e-05,2]
[351698795,1738755031962,-500.0,8.799e-05,2]
[351698796,1738755031971,-500.0,8.799e-05,2]
[351698797,1738755031981,-500.0,8.799e-05,2]
[351698798,1738755031990,-500.0,8.799e-05,2]
[351698799,1738755032000,-500.0,8.799e-05,2]
[351698800,1738755032009,-500.0,8.799e-05,2]
[351698801,1738755032018,-500.0,8.799e-05,2]
[351698802,1738755032027,-500.0,8.799e-05,2]
[351698803,1738755032036,-500.0,8.799e-05,2]
[351698804,1738755032046,-500.0,8.799e-05,2]
[351698805,1738755032055,-500.0,8.799e-05,2]
[351698806,1738755032064,-500.0,8.799e-05,2]
[351698807,1738755032073,-500.0,8.799e-05,2]
[351698808,1738755032082,-500.0,8.799e-05,2]
[351698809,1738755032092,-500.0,8.799e-05,2]
[351698810,1738755032101,-500.0,8.799e-05,2]
[351698811,1738755032111,-500.0,8.799e-05,2]
[351698812,1738755032120,-500.0,8.799e-05,2]
[351698813,1738755032129,-500.0,8.799e-05,2]
[351698815,1738755032138,-500.0,8.799e-05,2]
[351698817,1738755032147,-606.44,8.799e-05,2]
[351698819,1738755032161,-500.0,8.799e-05,2]
[351698820,1738755032172,-500.0,8.799e-05,2]
[351698822,1738755032182,-500.0,8.799e-05,2]
[351698824,1738755032191,-500.0,8.799e-05,2]
[351698826,1738755032202,-500.0,8.799e-05,2]
[351698828,1738755032211,-500.0,8.799e-05,2]
[351698830,1738755032221,-500.0,8.799e-05,2]
[351698831,1738755032231,-500.0,8.799e-05,2]
[351698833,1738755032241,-500.0,8.799e-05,2]
[351698837,1738755032251,-500.0,8.799e-05,2]
[351698839,1738755032261,-500.0,8.799e-05,2]
[351698841,1738755032270,-500.0,8.799e-05,2]
[351698844,1738755032279,-500.0,8.799e-05,2]
[351698847,1738755032288,-500.0,8.799e-05,2]
[351698850,1738755032297,-907.069838,8.799e-05,2]
[351698853,1738755032307,-500.0,8.799e-05,2]
[351698856,1738755032316,-500.0,8.799e-05,2]
[351698859,1738755032325,-500.20785768,8.799e-05,2]
[351698862,1738755032334,-231.665584,8.799e-05,2]
[351698865,1738755032343,-500.0,8.799e-05,2]
[351698868,1738755032352,-502.19605916,8.799e-05,2]
[351698871,1738755032361,-500.51073077,8.799e-05,2]
[351698875,1738755032371,-502.57357539,8.799e-05,2]
[351698878,1738755032380,-500.0,8.799e-05,2]
[351698881,1738755032390,-500.0,8.799e-05,2]
[351698883,1738755032399,-615.98,8.799e-05,2]
[351698884,1738755032408,-501.10469126,8.799e-05,2]
[351698885,1738755032417,-500.0,8.799e-05,2]
[351698886,1738755032427,-500.0,8.799e-05,2]
[351698887,1738755032436,-500.0,8.799e-05,2]
[351698888,1738755032446,-500.0,8.799e-05,2]
[351698889,1738755032455,-501.93658528,8.799e-05,2]
[351698890,1738755032465,-155.652071,8.799e-05,2]
[351698891,1738755032475,-500.16136884,8.799e-05,2]
[351698892,1738755032484,-500.0,8.799e-05,2]
[351698893,1738755032494,-500.0,8.799e-05,2]
[351698894,1738755032503,-500.0,8.799e-05,2]
[351698895,1738755032512,-500.0,8.799e-05,2]
[351698896,1738755032521,-42391.83628289,8.8e-05,2]
[351698897,1738755032542,-2646.87654686,8.8e-05,2]
[351698898,1738755032562,-531.29172084,8.8e-05,2]
[351698899,1738755032573,-43010.79713,8.8e-05,2]
[351698900,1738755032600,-269.82999758,8.8e-05,2]
[351698901,1738755032611,-885.61032,8.8e-05,2]
[351698908,1738755037624,-511.77687127,8.799e-05,2]
[351698909,1738755037645,-7.12384733,8.799e-05,2]
[351698910,1738755037789,-492.87615267,8.799e-05,2]
[351698911,1738755037799,-500.0,8.799e-05,2]
[351698912,1738755037809,-500.34744753,8.799e-05,2]
[351698913,1738755037819,-500.0,8.799e-05,2]
[351698914,1738755037828,-502.01520117,8.799e-05,2]
[351698915,1738755037838,-97170.9190475,8.8e-05,2]
[351698916,1738755037850,-4312.73493,8.8e-05,2]
[351698917,1738755037888,-261.98954947,8.8e-05,2]
[351698920,1738755039474,-500.0,8.799e-05,2]
[351698921,1738755039485,-501.95182467,8.799e-05,2]
[351698922,1738755039495,-23807.44817733,8.8e-05,2]
[351698923,1738755039533,-587.6557862,8.8e-05,2]
[351698924,1738755039646,-418.01424999,8.8e-05,2]
[351698925,1738755039758,-15263.3446,8.8e-05,2]
[351698926,1738755039814,-4793.6447409,8.8e-05,2]
[351698927,1738755039825,-14047.46930319,8.8e-05,2]
[351698928,1738755039871,-302.2027,8.8e-05,2]
[351698988,1738755042803,-500.0,8.799e-05,2]
[351698989,1738755042812,-502.25487725,8.799e-05,2]
[351698990,1738755042822,-39222.52485833,8.8e-05,2]
[351698991,1738755042857,-11245.59999998,8.8e-05,2]
[351698992,1738755042868,-6757.8899997,8.8e-05,2]
[351699015,1738755045631,-420.8,8.799e-05,2]
[351699016,1738755045647,-79.2,8.799e-05,2]
[351699017,1738755045657,-500.0,8.799e-05,2]
[351699018,1738755045667,-583.90961645,8.799e-05,2]
[351699019,1738755045677,-2887.89333115,8.8e-05,2]
[351699020,1738755045775,-9810.91017467,8.8e-05,2]
[351699021,1738755045792,-3489.348,8.836e-05,2]
[351699022,1738755045805,-215.0377,8.836e-05,2]
[351699023,1738755045815,-178.8849,8.836e-05,2]
[351699024,1738755045824,-10408.6191,8.836e-05,2]
[351699025,1738755045835,-1801.0905,8.836e-05,2]
[351699026,1738755045848,-1365.5274,8.836e-05,2]
[351699027,1738755045858,-310.4377,8.851e-05,2]
[351699028,1738755045867,-2500.0,8.851e-05,2]
[351699029,1738755045876,-500.0,8.936e-05,2]
[351699030,1738755045886,-500.0,8.936e-05,2]
[351699031,1738755045896,-500.0,8.936e-05,2]
[351699032,1738755045906,-500.0,8.936e-05,2]
[351699033,1738755045917,-500.0,8.936e-05,2]
[351699034,1738755045927,-500.0,8.936e-05,2]
[351699035,1738755045937,-500.0,8.936e-05,2]
[351699037,1738755045946,-500.0,8.936e-05,2]
[351699039,1738755045957,-500.0,8.936e-05,2]
[351699041,1738755045967,-500.0,8.936e-05,2]
[351699043,1738755045976,-500.0,8.936e-05,2]
[351699045,1738755045986,-500.0,8.936e-05,2]
[351699047,1738755045995,-500.0,8.936e-05,2]
[351699049,1738755046005,-500.0,8.936e-05,2]
[351699051,1738755046014,-500.0,8.936e-05,2]
[351699053,1738755046024,-439.78,8.936e-05,2]
[351699055,1738755046034,-500.0,8.936e-05,2]
[351699057,1738755046043,-500.0,8.936e-05,2]
[351699059,1738755046052,-500.0,8.936e-05,2]
[351699061,1738755046061,-500.0,8.936e-05,2]
[351699063,1738755046070,-500.0,8.936e-05,2]
[351699065,1738755046079,-500.0,8.936e-05,2]
[351699066,1738755046089,-500.0,8.936e-05,2]
[351699067,1738755046098,-500.0,8.936e-05,2]
[351699068,1738755046107,-500.0,8.936e-05,2]
[351699069,1738755046117,-500.0,8.936e-05,2]
[351699070,1738755046127,-500.0,8.936e-05,2]
[351699071,1738755046137,-500.0,8.936e-05,2]
[351699072,1738755046148,-907.069838,8.936e-05,2]
[351699073,1738755046158,-500.0,8.936e-05,2]
[351699074,1738755046171,-315.78,8.936e-05,2]
[351699075,1738755046180,-500.0,8.936e-05,2]
[351699076,1738755046190,-500.0,8.936e-05,2]
[351699077,1738755046199,-500.0,8.936e-05,2]
[351699078,1738755046212,-500.0,8.936e-05,2]
[351699079,1738755046221,-154.13,8.936e-05,2]
[351699080,1738755046231,-500.0,8.936e-05,2]
[351699081,1738755046242,-415.25,8.936e-05,2]
[351699082,1738755046253,-605.57,8.936e-05,2]
[351699083,1738755046261,-500.0,8.936e-05,2]
[351699084,1738755046269,-500.0,8.936e-05,2]
[351699085,1738755046277,-500.0,8.936e-05,2]
[351699086,1738755046286,-500.0,8.936e-05,2]
[351699087,1738755046294,-500.0,8.936e-05,2]
[351699088,1738755046302,-420.0,8.969e-05,2]
[351699089,1738755046310,-500.0,8.972e-05,2]
[351699090,1738755046319,-500.0,8.972e-05,2]
[351699091,1738755046328,-500.0,8.972e-05,2]
[351699092,1738755046337,-500.0,8.972e-05,2]
[351699093,1738755046345,-500.0,8.972e-05,2]
[351699094,1738755046353,-500.0,8.972e-05,2]
[351699095,1738755046361,-500.0,8.972e-05,2]
[351699096,1738755046368,-500.0,8.972e-05,2]
[351699097,1738755046376,-500.0,8.972e-05,2]
[351699098,1738755046385,-500.0,8.972e-05,2]
[351699099,1738755046393,-500.0,8.972e-05,2]
[351699100,1738755046401,-500.0,8.972e-05,2]
[351699101,1738755046409,-500.0,8.972e-05,2]
[351699102,1738755046417,-500.0,8.972e-05,2]
[351699103,1738755046425,-500.0,8.972e-05,2]
[351699104,1738755046433,-500.0,8.972e-05,2]
[351699105,1738755046441,-500.0,8.972e-05,2]
[351699106,1738755046448,-500.0,8.972e-05,2]
[351699107,1738755046457,-500.0,8.972e-05,2]
[351699108,1738755046466,-500.0,8.972e-05,2]
[351699109,1738755046473,-500.0,8.972e-05,2]
[351699110,1738755046482,-500.0,8.972e-05,2]
[351699111,1738755046490,-500.0,8.972e-05,2]
[351699112,1738755046499,-500.0,8.972e-05,2]
[351699113,1738755046509,-500.0,8.972e-05,2]
[351699114,1738755046518,-500.0,8.972e-05,2]
[351699115,1738755046528,-500.0,8.972e-05,2]
[351699116,1738755046541,-500.0,8.972e-05,2]
[351699117,1738755046550,-500.0,8.972e-05,2]
[351699118,1738755046560,-500.0,8.972e-05,2]
[351699119,1738755046570,-500.0,8.972e-05,2]
[351699120,1738755046579,-500.0,8.972e-05,2]
[351699121,1738755046589,-203.35348095,8.972e-05,2]
[351699122,1738755046598,-500.0,8.972e-05,2]
[351699123,1738755046608,-500.0,8.972e-05,2]
[351699124,1738755046617,-500.0,8.972e-05,2]
[351699125,1738755046627,-500.0,8.972e-05,2]
[351699126,1738755046636,-500.0,8.972e-05,2]
[351699127,1738755046646,-500.0,8.972e-05,2]
[351699128,1738755046656,-500.0,8.972e-05,2]
[351699129,1738755046665,-500.0,8.972e-05,2]
[351699130,1738755046675,-500.0,8.972e-05,2]
[351699131,1738755046685,-500.0,8.972e-05,2]
[351699132,1738755046695,-500.0,8.972e-05,2]
[351699133,1738755046706,-500.0,8.972e-05,2]
[351699134,1738755046716,-500.0,8.972e-05,2]
[351699135,1738755046726,-500.0,8.972e-05,2]
[351699136,1738755046736,-500.0,8.972e-05,2]
[351699137,1738755046745,-500.0,8.972e-05,2]
[351699138,1738755046755,-17523.1954,8.973e-05,2]
[351699139,1738755046764,-5000.0,8.973e-05,2]
[351699140,1738755046774,-46673.79149199,9e-05,2]
[351699141,1738755046783,-656.57,9.041e-05,2]
[351699142,1738755046792,-878.54,9.041e-05,2]
[351699143,1738755046801,-500.0,9.073e-05,2]
[351699144,1738755046811,-500.0,9.073e-05,2]
[351699145,1738755046820,-500.0,9.073e-05,2]
[351699146,1738755046830,-306.1655926,9.073e-05,2]
[351699147,1738755046839,-500.0,9.073e-05,2]
[351699148,1738755046848,-500.0,9.073e-05,2]
[351699149,1738755046858,-500.0,9.073e-05,2]
[351699150,1738755046867,-390.39,9.073e-05,2]
[351699151,1738755046877,-500.0,9.073e-05,2]
[351699152,1738755046887,-500.0,9.073e-05,2]
[351699153,1738755046896,-500.0,9.073e-05,2]
[351699154,1738755046905,-500.0,9.073e-05,2]
[351699155,1738755046915,-500.0,9.073e-05,2]
[351699156,1738755046924,-500.0,9.073e-05,2]
[351699157,1738755046933,-500.0,9.073e-05,2]
[351699158,1738755046943,-500.0,9.073e-05,2]
[351699159,1738755046952,-258.32,9.073e-05,2]
[351699160,1738755046962,-500.0,9.073e-05,2]
[351699161,1738755046971,-500.0,9.073e-05,2]
[351699162,1738755046981,-237.91,9.073e-05,2]
[351699163,1738755046990,-500.0,9.073e-05,2]
[351699164,1738755046999,-589.23,9.073e-05,2]
[351699165,1738755047008,-500.0,9.073e-05,2]
[351699166,1738755047018,-495.45,9.073e-05,2]
[351699167,1738755047027,-500.0,9.073e-05,2]
[351699168,1738755047036,-500.0,9.073e-05,2]
[351699169,1738755047045,-500.0,9.073e-05,2]
[351699170,1738755047054,-500.0,9.073e-05,2]
[351699171,1738755047063,-907.069838,9.073e-05,2]
[351699172,1738755047072,-500.0,9.073e-05,2]
[351699173,1738755047081,-445.37,9.073e-05,2]
[351699174,1738755047091,-648.27,9.073e-05,2]
[351699175,1738755047100,-500.0,9.073e-05,2]
[351699176,1738755047110,-500.0,9.073e-05,2]
[351699177,1738755047119,-500.0,9.073e-05,2]
[351699178,1738755047129,-500.0,9.073e-05,2]
[351699179,1738755047139,-500.0,9.073e-05,2]
[351699180,1738755047148,-500.0,9.073e-05,2]
[351699181,1738755047158,-500.0,9.073e-05,2]
[351699182,1738755047171,-500.0,9.081e-05,2]
[351699183,1738755047180,-500.0,9.081e-05,2]
[351699184,1738755047190,-300.0,9.178e-05,2]
[351699185,1738755047200,-500.0,9.21e-05,2]
[351699186,1738755047212,-500.0,9.21e-05,2]
[351699187,1738755047222,-500.0,9.21e-05,2]
[351699188,1738755047231,-500.0,9.21e-05,2]
[351699189,1738755047242,-500.0,9.21e-05,2]
[351699190,1738755047251,-447.11,9.21e-05,2]
[351699191,1738755047261,-500.0,9.21e-05,2]
[351699192,1738755047270,-500.0,9.21e-05,2]
[351699193,1738755047279,-500.0,9.21e-05,2]
[351699194,1738755047288,-500.0,9.21e-05,2]
[351699195,1738755047297,-500.0,9.21e-05,2]
[351699196,1738755047307,-500.0,9.21e-05,2]
[351699197,1738755047316,-500.0,9.21e-05,2]
[351699198,1738755047325,-461.06,9.21e-05,2]
[351699199,1738755047335,-453.2,9.21e-05,2]
[351699200,1738755047344,-500.0,9.21e-05,2]
[351699201,1738755047353,-544.63,9.21e-05,2]
[351699202,1738755047362,-500.0,9.21e-05,2]
[351699203,1738755047372,-500.0,9.21e-05,2]
[351699204,1738755047383,-500.0,9.21e-05,2]
[351699205,1738755047393,-500.0,9.21e-05,2]
[351699206,1738755047402,-399.16,9.21e-05,2]
[351699207,1738755047412,-907.069838,9.21e-05,2]
[351699208,1738755047421,-500.0,9.21e-05,2]
[351699209,1738755047431,-500.0,9.21e-05,2]
[351699210,1738755047440,-500.0,9.21e-05,2]
[351699211,1738755047450,-500.0,9.21e-05,2]
[351699212,1738755047461,-500.0,9.21e-05,2]
[351699213,1738755047472,-500.0,9.21e-05,2]
[351699214,1738755047481,-389.79,9.21e-05,2]
[351699215,1738755047491,-500.0,9.21e-05,2]
[351699216,1738755047500,-1000.0,9.247e-05,2]
[351699217,1738755047509,-500.0,9.347e-05,2]
[351699218,1738755047519,-500.0,9.347e-05,2]
[351699219,1738755047528,-282.42,9.347e-05,2]
[351699220,1738755047538,-500.0,9.347e-05,2]
[351699221,1738755047547,-258.17181629,9.347e-05,2]
[351699222,1738755047556,-500.0,9.347e-05,2]
[351699223,1738755047566,-500.0,9.347e-05,2]
[351699224,1738755047575,-500.0,9.347e-05,2]
[351699225,1738755047585,-500.0,9.347e-05,2]